bitfinex-derivatives/quotes_BTCF0:USTF0_20250501
["timestamp","ask_amount","ask_price","bid_price","bid_amount"]
[1746083861142,1.47461413,95001.0,95000.0,0.1638431]
[1746083861343,1.47461413,95001.0,95000.0,0.1668431]
[1746083862147,1.47461413,95001.0,95000.0,0.006]
[1746083862845,1.89331413,95001.0,95000.0,0.006]
[1746083870759,1.99857813,95001.0,95000.0,0.006]
[1746083871660,2.00857813,95001.0,95000.0,0.006]
[1746083872050,0.210508,94994.0,94993.0,0.0319]
[1746083872252,0.2105102,94993.0,94992.0,0.00157907]
[1746083872554,1.53531636,94993.0,94992.0,0.00157907]
[1746083874349,1.53531636,94993.0,94992.0,0.00357907]
[1746083874555,1.53531636,94993.0,94992.0,0.00557907]
[1746083875657,0.210539,94980.0,94979.0,0.12569552]
[1746083875854,0.571339,94980.0,94979.0,0.06]
[1746083876861,0.571339,94980.0,94979.0,0.07]
[1746083877152,0.636939,94980.0,94979.0,0.07]
[1746083879853,0.636939,94980.0,94979.0,0.067]
[1746083880164,1.80136403,94980.0,94979.0,0.067]
[1746083880354,1.80136403,94980.0,94979.0,0.004]
[1746083880966,1.80136403,94980.0,94979.0,0.003]
[1746083882165,1.81136403,94980.0,94979.0,0.003]
[1746083883258,2.23006403,94980.0,94979.0,0.003]
[1746083884869,0.0526419,94968.0,94963.0,0.0526437]
[1746083885079,0.57137,94966.0,94965.0,0.50107]
[1746083885573,0.60347,94966.0,94965.0,0.50107]
[1746083886168,0.60347,94966.0,94965.0,0.50607]
[1746083886374,0.60347,94966.0,94965.0,0.51107]
[1746083886874,0.60447,94966.0,94965.0,0.51107]
[1746083887081,0.60547,94966.0,94965.0,0.51107]
[1746083889174,0.3628,94966.0,94965.0,0.56927]
[1746083889388,0.0526366,94977.0,94976.0,0.2631798]
[1746083889571,0.7795,94980.0,94979.0,0.2105412]
[1746083889766,0.4187,94980.0,94979.0,0.4605412]
[1746083890670,0.41874,94980.0,94979.0,0.4625412]
[1746083891671,0.629279,94980.0,94979.0,0.4625412]
[1746083892680,0.629279,94980.0,94979.0,0.4645412]
[1746083893982,0.41874,94980.0,94979.0,0.4645412]
[1746083894283,0.41874,94980.0,94979.0,0.5698252]
[1746083894478,0.4187,94980.0,94979.0,0.6260252]
[1746083894680,0.41874,94980.0,94979.0,0.6260252]
[1746083894984,4e-05,94980.0,94979.0,0.6260252]
[1746083895173,4e-05,94980.0,94979.0,0.5207412]
[1746083896783,5.401e-05,94988.0,94987.0,0.2105235]
[1746083896979,0.3608,94994.0,94993.0,0.2105102]
[1746083897177,0.571308,94994.0,94993.0,0.4805102]
[1746083897681,0.571348,94994.0,94993.0,0.4805102]
[1746083897972,0.210548,94994.0,94993.0,0.4805102]
[1746083898177,0.210548,94994.0,94993.0,0.5385102]
[1746083899176,0.211548,94994.0,94993.0,0.5385102]
[1746083899681,0.212548,94994.0,94993.0,0.5385102]
[1746083900185,0.211548,94994.0,94993.0,0.5385102]
[1746083900375,0.211548,94994.0,94993.0,0.5435102]
[1746083900575,0.212548,94994.0,94993.0,0.5485102]
[1746083900976,0.00204,94994.0,94993.0,0.5485102]
[1746083901287,0.00204,94994.0,94993.0,0.6114702]
[1746083901474,0.002,94994.0,94993.0,0.6114702]
[1746083901678,0.00204,94994.0,94993.0,0.6114702]
[1746083902488,0.002,94994.0,94993.0,0.6114702]
[1746083902671,0.00204,94994.0,94993.0,0.6114702]
[1746083903180,0.212548,94994.0,94993.0,0.6114702]
[1746083904190,0.275348,94994.0,94993.0,0.5861702]
[1746083915794,0.275348,94994.0,94993.0,0.5534702]
[1746083923403,0.275348,94994.0,94993.0,0.4905102]
[1746083923896,1.43198216,94994.0,94993.0,0.28]
[1746083924101,1.43198216,94994.0,94993.0,0.4905102]
[1746083924905,1.79278216,94994.0,94993.0,0.4905102]
[1746083934019,1.79274216,94994.0,94993.0,0.4905102]
[1746083936214,1.79274216,94994.0,94993.0,0.28]
[1746083936817,1.79274216,94994.0,94993.0,0.01]
[1746083939425,1.81274216,94994.0,94993.0,0.01]
[1746083941921,2.23144216,94994.0,94993.0,0.01]
[1746083943123,2.23144216,94994.0,94993.0,0.00796]
[1746083943312,2.65975416,94994.0,94993.0,0.00796]
[1746083943713,0.2105346,94982.0,94981.0,0.1608431]
[1746083943923,1.74796876,94982.0,94981.0,0.1608431]
[1746083944123,0.2105501,94975.0,94974.0,0.21445747]
[1746083944323,1.74798426,94975.0,94974.0,0.21445747]
[1746083944517,1.85327627,94975.0,94974.0,0.21445747]
[1746083944920,0.2105523,94974.0,94973.0,0.21445747]
[1746083945213,0.33584431,94974.0,94973.0,0.21445747]
[1746083945421,1.49247847,94974.0,94973.0,0.21445747]
[1746083947129,1.38718646,94974.0,94973.0,0.21545747]
[1746083947325,1.45008646,94974.0,94973.0,0.21545747]
[1746083947828,1.86878646,94974.0,94973.0,0.21545747]
[1746083948132,1.86878646,94974.0,94973.0,0.002]
[1746083948621,0.2105678,94967.0,94966.0,0.2105696]
[1746083948828,1.72800196,94967.0,94966.0,0.2105696]
[1746083949630,1.79150196,94967.0,94966.0,0.2105696]
[1746083949824,1.79150196,94967.0,94966.0,0.2125696]
[1746083950315,1.79250196,94967.0,94966.0,0.2255696]
[1746083952015,0.6036678,94967.0,94966.0,0.2255696]
[1746083952221,0.5723678,94967.0,94966.0,0.2255696]
[1746083953127,0.2116078,94967.0,94966.0,0.2255696]
[1746083953319,0.2115678,94967.0,94966.0,0.2255696]
[1746083953722,0.2116078,94967.0,94966.0,0.2255696]
[1746083965632,0.00104,94967.0,94966.0,0.2255696]
[1746083965822,0.2631973,94976.0,94975.0,0.2105501]
[1746083966128,0.2631973,94976.0,94975.0,0.4505501]
[1746083966625,0.2105449,94978.0,94977.0,0.2631771]
[1746083966831,0.2105449,94978.0,94977.0,0.5566771]
[1746083967133,0.2105849,94978.0,94977.0,0.5879771]
[1746083967332,0.2105449,94978.0,94977.0,0.5879771]
[1746083967537,0.2105849,94978.0,94977.0,0.5879771]
[1746083968339,0.2105849,94978.0,94977.0,0.59878767]
[1746083972230,0.2105849,94978.0,94977.0,0.5036412]
[1746083972432,0.2728849,94978.0,94977.0,0.5036412]
[1746083978945,0.2728849,94978.0,94977.0,0.4723412]
[1746083979138,0.2738849,94978.0,94977.0,0.4763412]
[1746083979537,0.2748849,94978.0,94977.0,0.4803412]
[1746083985555,0.2748849,94978.0,94977.0,0.5124412]
[1746083986546,0.06434,94978.0,94977.0,0.5124412]
[1746083986746,0.2748834,94978.0,94977.0,0.5124412]
[1746083987153,0.2748834,94978.0,94977.0,0.5451412]
[1746083988051,0.2441834,94978.0,94977.0,0.5451412]
[1746083989952,0.2441834,94978.0,94977.0,0.5124412]
[1746083990157,0.2771834,94978.0,94977.0,0.5124412]
[1746083994462,0.2771834,94978.0,94977.0,0.4803412]
[1746083994660,0.2771834,94978.0,94977.0,0.4803457]
[1746083994957,1.43381756,94978.0,94977.0,0.238]
[1746083995351,1.58381756,94978.0,94977.0,0.238]
[1746083996245,1.58381756,94978.0,94977.0,0.008]
[1746083998647,1.60381756,94978.0,94977.0,0.008]
[1746083999154,1.60377756,94978.0,94977.0,0.008]
[1746084000557,2.02247756,94978.0,94977.0,0.008]
[1746084005066,2.00247756,94978.0,94977.0,0.3985457]
[1746084005467,0.8458834,94978.0,94977.0,0.3985457]
[1746084005858,0.8458834,94978.0,94977.0,0.4310457]
[1746084006467,0.4271834,94978.0,94977.0,0.4310457]
[1746084010563,5.401e-05,94984.0,94983.0,0.2105324]
[1746084010761,5.401e-05,94984.0,94983.0,0.4505324]
[1746084010960,0.21058411,94984.0,94983.0,0.4505324]
[1746084011164,0.21058411,94984.0,94983.0,0.52469502]
[1746084011470,0.2105301,94984.0,94983.0,0.52469502]
[1746084011762,0.2105701,94984.0,94983.0,0.52769502]
[1746084011968,0.2115701,94984.0,94983.0,0.53069502]
[1746084012169,0.2115701,94984.0,94983.0,0.5202324]
[1746084013168,0.2115701,94984.0,94983.0,0.5172324]
[1746084013369,0.2125701,94984.0,94983.0,0.5232324]
[1746084013570,0.2125701,94984.0,94983.0,0.5272324]
[1746084013758,0.2115701,94984.0,94983.0,0.5272324]
[1746084013964,0.2125701,94984.0,94983.0,0.5272324]
[1746084014370,0.2125701,94984.0,94983.0,0.53791235]
[1746084025276,0.2125701,94984.0,94983.0,0.5272324]
[1746084027282,0.2125701,94984.0,94983.0,0.53784469]
[1746084028483,0.2125701,94984.0,94983.0,0.5272324]
[1746084030375,0.5733701,94984.0,94983.0,0.5272324]
[1746084030583,0.6036701,94984.0,94983.0,0.5272324]
[1746084032989,0.6036701,94984.0,94983.0,0.4947324]
[1746084033992,0.2428701,94984.0,94983.0,0.4947324]
[1746084034593,0.2757701,94984.0,94983.0,0.4947324]
[1746084041606,0.2757301,94984.0,94983.0,0.4947324]
[1746084050613,0.2757301,94984.0,94983.0,0.4937324]
[1746084050910,0.2757301,94984.0,94983.0,0.4927324]
[1746084051303,0.2747301,94984.0,94983.0,0.4867324]
[1746084051507,0.2757301,94984.0,94983.0,0.4937324]
[1746084051710,1.43236426,94984.0,94983.0,0.4625324]
[1746084052910,1.22183416,94984.0,94983.0,0.4625324]
[1746084053508,1.43240426,94984.0,94983.0,0.4625324]
[1746084053710,1.43240426,94984.0,94983.0,0.5243324]
[1746084058815,1.43240426,94984.0,94983.0,0.4932324]
[1746084059412,1.79320426,94984.0,94983.0,0.252]
[1746084062716,1.79320426,94984.0,94983.0,0.4625324]
[1746084073114,0.03494,94984.0,94983.0,0.4625324]
[1746084073419,0.4187,94991.0,94990.0,0.2105168]
[1746084073620,0.0317,94993.0,94992.0,0.2105124]
[1746084073922,0.0317,94993.0,94992.0,0.4905124]
[1746084074317,4e-05,94993.0,94992.0,0.4905124]
[1746084075224,0.0803888,94994.0,94993.0,0.2105102]
[1746084075527,0.2104969,94999.0,94998.0,0.2104947]
[1746084075728,1.36713106,94999.0,94998.0,0.4804947]
[1746084076724,1.39803106,94999.0,94998.0,0.4804947]
[1746084077128,1.39803106,94999.0,94998.0,0.4834947]
[1746084077830,1.39903106,94999.0,94998.0,0.4864947]
[1746084085034,1.39903106,94999.0,94998.0,0.5165947]
[1746084090336,1.43013106,94999.0,94998.0,0.5165947]
[1746084093140,1.43013106,94999.0,94998.0,0.276]
[1746084093529,1.43013106,94999.0,94998.0,0.4864991]
[1746084095932,1.43013106,94999.0,94998.0,0.5864991]
[1746084099043,1.39903106,94999.0,94998.0,0.5864991]
[1746084099243,1.39903106,94999.0,94998.0,0.6170991]
[1746084099636,1.39907106,94999.0,94998.0,0.6170991]
[1746084101750,1.39907106,94999.0,94998.0,0.62784611]
[1746084106052,1.39907106,94999.0,94998.0,0.6170991]
[1746084106246,1.39907106,94999.0,94998.0,0.5864991]
[1746084110344,0.2424369,94999.0,94998.0,0.5864991]
[1746084110549,1.39907106,94999.0,94998.0,0.5864991]
[1746084120561,1.39907106,94999.0,94998.0,0.376]
[1746084120744,1.39907106,94999.0,94998.0,0.5864991]
[1746084127366,0.03,95001.0,94999.0,0.2104969]
[1746084127665,0.0322,95005.0,95004.0,0.2104858]
[1746084127865,0.0015,95010.0,95008.0,0.210477]
[1746084127866,0.2426747,95009.0,95008.0,0.210477]
[1746084128065,1.18883416,95009.0,95008.0,0.490477]
[1746084128267,0.0322,95009.0,95008.0,0.490477]
[1746084128559,0.0322,95009.0,95008.0,0.554477]
[1746084128767,0.2426747,95009.0,95008.0,0.56497568]
[1746084129066,0.25042245,95009.0,95008.0,0.554477]
[1746084129471,0.03994775,95009.0,95008.0,0.554477]
[1746084129965,0.03994775,95009.0,95008.0,0.555477]
[1746084130567,0.25042245,95009.0,95008.0,0.555477]
[1746084130767,0.28242245,95009.0,95008.0,0.556477]
[1746084131167,0.28246245,95009.0,95008.0,0.556477]
[1746084131573,0.28246245,95009.0,95008.0,0.555477]
[1746084131755,0.28246245,95009.0,95008.0,0.557477]
[1746084132259,0.28246245,95009.0,95008.0,0.56782484]
[1746084133271,0.06424,95009.0,95008.0,0.56782484]
[1746084133468,5.401e-05,95015.0,95014.0,0.2104637]
[1746084133675,5.401e-05,95015.0,95014.0,0.4604637]
[1746084133868,0.2104559,95018.0,95015.0,0.2104614]
[1746084134071,0.0628,95019.0,95015.0,0.2104614]
[1746084134072,0.2104574,95017.0,95015.0,0.4604614]
[1746084134465,0.2114592,95016.0,95015.0,0.4604614]
[1746084135874,0.2743592,95016.0,95015.0,0.5227614]
[1746084137073,0.2753592,95016.0,95015.0,0.5227614]
[1746084138277,0.2753592,95016.0,95015.0,0.4924614]
[1746084139387,0.2753592,95016.0,95015.0,0.282]
[1746084139680,0.2753592,95016.0,95015.0,0.4924614]
[1746084148275,0.0649,95016.0,95015.0,0.4924614]
[1746084148478,0.2753592,95016.0,95015.0,0.4924614]
[1746084148987,0.2433592,95016.0,95015.0,0.4924614]
[1746084149187,0.0329,95016.0,95015.0,0.4924614]
[1746084149382,0.2104559,95018.0,95017.0,0.210457]
[1746084149590,0.2104559,95018.0,95017.0,0.440457]
[1746084149782,0.0312,95020.0,95019.0,0.2104526]
[1746084149991,0.0305,95022.0,95021.0,0.2104482]
[1746084150184,0.2409459,95022.0,95021.0,0.5004482]
[1746084150580,0.2409459,95022.0,95021.0,0.5330482]
[1746084150581,0.2712459,95022.0,95021.0,0.5330482]
[1746084151389,0.2722459,95022.0,95021.0,0.5330482]
[1746084152695,0.2742459,95022.0,95021.0,0.5330482]
[1746084166717,1.43088006,95022.0,95021.0,0.5330482]
[1746084166909,1.43088006,95022.0,95021.0,0.5004482]
[1746084169314,1.40058006,95022.0,95021.0,0.5004482]
[1746084170703,1.40058006,95022.0,95021.0,0.6004482]
[1746084176503,1.40058006,95022.0,95021.0,0.6318482]
[1746084178008,1.40058006,95022.0,95021.0,0.6004482]
[1746084179212,1.40058006,95022.0,95021.0,0.39]
[1746084179413,1.81928006,95022.0,95021.0,0.1]
[1746084185212,1.81928006,95022.0,95021.0,0.25]
[1746084185419,1.81932006,95022.0,95021.0,0.25]
[1746084185612,1.81932006,95022.0,95021.0,0.4604482]
[1746084185818,1.81932006,95022.0,95021.0,0.25]
[1746084187015,1.81932006,95022.0,95021.0,0.2814]
[1746084187314,1.81932006,95022.0,95021.0,0.4918482]
[1746084187619,0.6626859,95022.0,95021.0,0.4918482]
[1746084187803,0.6626459,95022.0,95021.0,0.4918482]
[1746084188003,0.6626859,95022.0,95021.0,0.4918482]
[1746084189415,0.6321859,95022.0,95021.0,0.4918482]
[1746084189919,0.6321459,95022.0,95021.0,0.4918482]
[1746084190117,0.6321859,95022.0,95021.0,0.4918482]
[1746084190704,0.2104379,95026.0,95022.0,0.0526114]
[1746084190907,0.2104379,95026.0,95025.0,0.2630442]
[1746084191108,0.2630474,95026.0,95025.0,0.5230442]
[1746084191308,0.2630474,95026.0,95025.0,0.6182442]
[1746084192021,0.2670474,95026.0,95025.0,0.6182442]
[1746084192320,0.2650474,95026.0,95025.0,0.62897431]
[1746084192619,0.2670474,95026.0,95025.0,0.6182442]
[1746084193817,0.2670474,95026.0,95025.0,0.5656349]
[1746084194422,0.3291474,95026.0,95025.0,0.5656349]
[1746084195120,0.3291474,95026.0,95025.0,0.5006349]
[1746084198527,0.3291474,95026.0,95025.0,0.6006349]
[1746084200522,1.48578156,95026.0,95025.0,0.3902]
[1746084200818,1.48578156,95026.0,95025.0,0.6006393]
[1746084201923,1.45468156,95026.0,95025.0,0.6006393]
[1746084202130,0.2980474,95026.0,95025.0,0.6006393]
[1746084202627,0.3303474,95026.0,95025.0,0.6006393]
[1746084203218,0.3303874,95026.0,95025.0,0.6006393]
[1746084206231,0.3303874,95026.0,95025.0,0.7226393]
[1746084220138,0.06734,95026.0,95025.0,0.7226393]
[1746084220337,0.2777371,95026.0,95025.0,0.7226393]
[1746084220639,0.06734,95026.0,95025.0,0.7226393]
[1746084220951,0.2777771,95026.0,95025.0,0.7226393]
[1746084221636,0.2777771,95026.0,95025.0,0.6226393]
[1746084222543,0.2757771,95026.0,95025.0,0.6246393]
[1746084222843,0.2737771,95026.0,95025.0,0.6266393]
[1746084227746,0.06334,95026.0,95025.0,0.6266393]
[1746084227938,0.0633,95026.0,95025.0,0.6266393]
[1746084228238,0.06334,95026.0,95025.0,0.6266393]
[1746084230645,0.2737771,95026.0,95025.0,0.6266393]
[1746084230944,0.2737771,95026.0,95025.0,0.6578393]
[1746084231145,0.06334,95026.0,95025.0,0.6578393]
[1746084231346,0.2737771,95026.0,95025.0,0.6578393]
[1746084235442,0.2737771,95026.0,95025.0,0.6266393]
[1746084237438,0.06334,95026.0,95025.0,0.6266393]
[1746084237639,0.2737771,95026.0,95025.0,0.6266393]
[1746084239548,0.06334,95026.0,95025.0,0.6266393]
[1746084242249,5.401e-05,95031.0,95030.0,0.2104282]
[1746084242445,0.3608,95032.0,95031.0,0.210426]
[1746084242646,0.3608,95032.0,95031.0,0.440426]
[1746084243141,0.36084,95032.0,95031.0,0.562426]
[1746084244550,4e-05,95032.0,95031.0,0.562426]
[1746084244750,4e-05,95032.0,95031.0,0.352]
[1746084245454,4e-05,95032.0,95031.0,1.852]
[1746084245653,4e-05,95032.0,95031.0,2.062426]
[1746084246245,4e-05,95032.0,95031.0,0.562426]
[1746084249555,0.0301,95033.0,95032.0,0.2104238]
[1746084249754,0.0301,95033.0,95032.0,0.4604238]
[1746084249942,0.0301,95033.0,95032.0,0.5214238]
[1746084250250,0.0301,95033.0,95032.0,0.6434238]
[1746084251056,0.00798745,95038.0,95037.0,0.2104127]
[1746084251251,0.00798745,95038.0,95037.0,0.4804127]
[1746084251454,1.16462161,95038.0,95037.0,0.4804127]
[1746084251753,1.16462161,95038.0,95037.0,0.5414127]
[1746084252159,1.16462161,95038.0,95037.0,0.6634127]
[1746084252358,1.16562161,95038.0,95037.0,0.6634127]
[1746084253049,1.16562161,95038.0,95037.0,0.67411089]
[1746084253242,1.16762161,95038.0,95037.0,0.67411089]
[1746084253448,1.1991676,95038.0,95037.0,0.67411089]
[1746084253657,1.1992076,95038.0,95037.0,0.67411089]
[1746084255156,1.2295076,95038.0,95037.0,0.67411089]
[1746084256166,1.4399181,95038.0,95037.0,0.67411089]
[1746084256663,1.4399181,95038.0,95037.0,0.6634127]
[1746084257047,1.4399181,95038.0,95037.0,0.6326127]
[1746084257647,1.8007181,95038.0,95037.0,0.392]
[1746084257848,1.8007181,95038.0,95037.0,0.122]
[1746084258268,0.2104304,95030.0,95029.0,0.263038]
[1746084258467,0.5712304,95030.0,95029.0,0.533038]
[1746084258657,1.82326456,95030.0,95029.0,0.533038]
[1746084259164,1.82326456,95030.0,95029.0,0.655038]
[1746084260064,1.82326456,95030.0,95029.0,0.656038]
[1746084260463,1.82326456,95030.0,95029.0,0.657038]
[1746084261855,1.46246456,95030.0,95029.0,0.657038]
[1746084262151,1.82326456,95030.0,95029.0,0.657038]
[1746084268566,1.46246456,95030.0,95029.0,0.657038]
[1746084269461,1.46246456,95030.0,95029.0,0.689138]
[1746084270673,1.46246456,95030.0,95029.0,0.70537591]
[1746084271277,1.46246456,95030.0,95029.0,0.689138]
[1746084271476,1.46246456,95030.0,95029.0,0.70537605]
[1746084271779,1.46246456,95030.0,95029.0,0.689138]
[1746084275187,1.46246456,95030.0,95029.0,0.6365304]
[1746084278181,1.18883416,95030.0,95029.0,0.6365304]
[1746084278788,0.0322,95030.0,95029.0,0.6365304]
[1746084279690,0.2426282,95030.0,95029.0,0.6365304]
[1746084280188,0.0322,95030.0,95029.0,0.6365304]
[1746084280387,0.0313,95035.0,95034.0,0.2104194]
[1746084280687,0.00797344,95038.0,95037.0,0.2104127]
[1746084280886,0.21838394,95038.0,95037.0,0.4604127]
[1746084281091,1.3749781,95038.0,95037.0,0.5824127]
[1746084281286,1.3750181,95038.0,95037.0,0.5824127]
[1746084281682,1.1646076,95038.0,95037.0,0.6136127]
[1746084282082,1.1962076,95038.0,95037.0,0.6136127]
[1746084282791,1.1982076,95038.0,95037.0,0.6136127]
[1746084282996,1.1992076,95038.0,95037.0,0.6136127]
[1746084283694,1.4096181,95038.0,95037.0,0.6136127]
[1746084292889,1.4096181,95038.0,95037.0,0.4032]
[1746084293096,1.4096181,95038.0,95037.0,0.6136127]
[1746084300404,1.4096181,95038.0,95037.0,0.3636127]
[1746084301403,1.4096181,95038.0,95037.0,0.1532]
[1746084301604,1.4096181,95038.0,95037.0,0.3636127]
[1746084309606,1.7704181,95038.0,95037.0,0.3636127]
[1746084311515,1.7703781,95038.0,95037.0,0.3636127]
[1746084315812,1.7703781,95038.0,95037.0,0.5336127]
[1746084316015,1.7388181,95038.0,95037.0,0.5336127]
[1746084316420,1.7388181,95038.0,95037.0,0.5641127]
[1746084325112,1.7388181,95038.0,95037.0,0.39028284]
[1746084325625,1.7368181,95038.0,95037.0,0.39028284]
[1746084325821,1.7378181,95038.0,95037.0,0.39028284]
[1746084326125,1.7378181,95038.0,95037.0,0.51228284]
[1746084326827,1.72988466,95038.0,95037.0,0.51228284]
[1746084328325,1.72988466,95038.0,95037.0,0.54268284]
[1746084330228,1.36908466,95038.0,95037.0,0.54268284]
[1746084331328,1.37683601,95038.0,95037.0,0.54268284]
[1746084334038,1.36908466,95038.0,95037.0,0.54268284]
[1746084337243,1.43248466,95038.0,95037.0,0.54268284]
[1746084343848,1.43248466,95038.0,95037.0,0.51218284]
[1746084345150,1.43248466,95038.0,95037.0,0.48178284]
[1746084346648,1.43244466,95038.0,95037.0,0.48178284]
[1746084350345,0.2758105,95038.0,95037.0,0.48178284]
[1746084350541,1.43244466,95038.0,95037.0,0.48178284]
[1746084355356,1.43244466,95038.0,95037.0,0.51248284]
[1746084357958,1.43244466,95038.0,95037.0,0.54308284]
[1746084359559,1.43244466,95038.0,95037.0,0.37308284]
[1746084362060,1.43244466,95038.0,95037.0,0.34248284]
[1746084367566,1.39914466,95038.0,95037.0,0.34248284]
[1746084367862,1.39914466,95038.0,95037.0,0.55348284]
[1746084372464,1.75994466,95038.0,95037.0,0.55348284]
[1746084378168,1.79184466,95038.0,95037.0,0.52248284]
[1746084378772,1.79184466,95038.0,95037.0,0.5124127]
[1746084379972,1.79184466,95038.0,95037.0,0.5439127]
[1746084380271,1.79184466,95038.0,95037.0,0.38311439]
[1746084380574,1.79184466,95038.0,95037.0,0.2419127]
[1746084380871,1.79184466,95038.0,95037.0,0.5319127]
[1746084381373,1.79184466,95038.0,95037.0,0.6539127]
[1746084381566,1.79184466,95038.0,95037.0,0.6871127]
[1746084392278,1.43104466,95038.0,95037.0,0.6871127]
[1746084392478,1.79184466,95038.0,95037.0,0.6871127]
[1746084402905,1.79184466,95038.0,95037.0,0.122]
[1746084403195,0.2104194,95034.0,95033.0,0.37120369]
[1746084403402,1.15663416,95034.0,95033.0,0.55120369]
[1746084403593,0.0526032,95037.0,95036.0,0.2104127]
[1746084403793,0.0526032,95037.0,95036.0,0.4604127]
[1746084403996,1.78045006,95037.0,95036.0,0.4604127]
[1746084404203,1.78045006,95037.0,95036.0,0.5824127]
[1746084404899,1.78145006,95037.0,95036.0,0.5824127]
[1746084405801,1.78245006,95037.0,95036.0,0.5824127]
[1746084407004,1.42165006,95037.0,95036.0,0.5824127]
[1746084407204,1.78245006,95037.0,95036.0,0.5824127]
[1746084413200,0.2650159,95037.0,95036.0,0.5824127]
[1746084414905,0.2963159,95037.0,95036.0,0.5824127]
[1746084416307,0.2963159,95037.0,95036.0,0.6152127]
[1746084421011,0.2963159,95037.0,95036.0,0.63094729]
[1746084421520,0.2963159,95037.0,95036.0,0.63094002]
[1746084421810,0.2963159,95037.0,95036.0,0.63094003]
[1746084422615,0.2963159,95037.0,95036.0,0.63094004]
[1746084423611,0.2963159,95037.0,95036.0,0.63093736]
[1746084424501,0.2963159,95037.0,95036.0,0.63093803]
[1746084424806,0.2963159,95037.0,95036.0,0.63093798]
[1746084426110,0.2963159,95037.0,95036.0,0.63093637]
[1746084426312,0.2437127,95037.0,95036.0,0.63093637]
[1746084426509,0.0333,95037.0,95036.0,0.99173637]
[1746084426715,0.0015,95045.0,95044.0,0.2103972]
[1746084426909,0.243195,95045.0,95044.0,0.45611595]
[1746084427211,0.243235,95045.0,95044.0,0.64391595]
[1746084427908,0.246235,95045.0,95044.0,0.64390682]
[1746084428209,0.249235,95045.0,95044.0,0.64390682]
[1746084430711,0.249235,95045.0,95044.0,0.64390371]
[1746084431213,0.249235,95045.0,95044.0,0.64390329]
[1746084431909,0.249235,95045.0,95044.0,0.64390161]
[1746084433115,0.249235,95045.0,95044.0,0.6281972]
[1746084439516,0.314035,95045.0,95044.0,0.4178]
[1746084439714,0.314035,95045.0,95044.0,0.352]
[1746084440020,1.47066916,95045.0,95044.0,0.122]
[1746084440213,0.2104127,95037.0,95036.0,0.16079513]
[1746084440418,0.2104127,95037.0,95036.0,0.38121003]
[1746084441017,0.2732127,95037.0,95036.0,0.38121003]
[1746084441217,0.2732127,95037.0,95036.0,0.50321003]
[1746084442115,0.2742127,95037.0,95036.0,0.50321003]
[1746084442624,0.2752127,95037.0,95036.0,0.50321003]
[1746084443821,0.2752127,95037.0,95036.0,0.3424149]
[1746084450627,0.6360127,95037.0,95036.0,0.3424149]
[1746084451617,0.2752127,95037.0,95036.0,0.3424149]
[1746084451818,0.6360127,95037.0,95036.0,0.3424149]
[1746084452829,0.6360127,95037.0,95036.0,0.50321003]
[1746084456833,0.6360127,95037.0,95036.0,0.3424149]
[1746084459334,0.2752127,95037.0,95036.0,0.3424149]
[1746084468750,0.2752127,95037.0,95036.0,0.3729149]
[1746084469451,0.2104238,95032.0,95031.0,0.21439351]
[1746084469752,0.2104437,95023.0,95022.0,0.26799189]
[1746084469949,1.36707786,95023.0,95022.0,0.27799189]
[1746084470546,1.42787786,95023.0,95022.0,0.27799189]
[1746084470941,1.42787786,95023.0,95022.0,0.01]
[1746084471136,1.39787786,95023.0,95022.0,0.2204459]
[1746084471345,0.2412437,95023.0,95022.0,0.2234459]
[1746084471547,0.0308,95023.0,95022.0,0.2234459]
[1746084471851,0.0308,95023.0,95022.0,0.2864459]
[1746084472149,0.0308,95023.0,95022.0,0.4084459]
[1746084472338,0.03084,95023.0,95022.0,0.4084459]
[1746084472648,0.2412837,95023.0,95022.0,0.4114459]
[1746084475952,0.03084,95023.0,95022.0,0.4114459]
[1746084476150,0.2412837,95023.0,95022.0,0.4745259]
[1746084478749,0.03084,95023.0,95022.0,0.4745259]
[1746084478951,0.0308,95023.0,95022.0,0.4745259]
[1746084479148,0.2412837,95023.0,95022.0,0.4745259]
[1746084481048,4e-05,95023.0,95022.0,0.4745259]
[1746084481244,4e-05,95023.0,95022.0,0.5797659]
[1746084481450,0.2630231,95036.0,95035.0,0.2104149]
[1746084481753,0.2954231,95036.0,95035.0,0.4504149]
[1746084481968,1.45205726,95036.0,95035.0,0.4818149]
[1746084482145,1.45209726,95036.0,95035.0,0.6038149]
[1746084482350,0.2954631,95036.0,95035.0,0.6038149]
[1746084482660,0.2964631,95036.0,95035.0,0.6038149]
[1746084483561,0.2964631,95036.0,95035.0,0.61946439]
[1746084483757,0.2964631,95036.0,95008.0,0.0526191]
[1746084483758,0.2630706,95019.0,95008.0,0.0526191]
[1746084483963,0.210457,95019.0,95018.0,0.2104545]
[1746084484159,0.210457,95019.0,95018.0,0.4504545]
[1746084484466,0.210457,95019.0,95018.0,0.5136945]
[1746084485561,0.211457,95019.0,95018.0,0.4504545]
[1746084485761,0.211457,95019.0,95018.0,0.5176945]
[1746084486063,0.211497,95019.0,95018.0,0.5176945]
[1746084486270,0.210497,95019.0,95018.0,0.5216945]
[1746084491569,0.210497,95019.0,95018.0,0.4584545]
[1746084491870,0.210497,95019.0,95018.0,0.5216945]
[1746084493261,4e-05,95019.0,95018.0,0.5216945]
[1746084493462,0.2104926,95019.0,95018.0,0.5216945]
[1746084493875,0.2104526,95019.0,95018.0,0.5216945]
[1746084494171,0.2104926,95019.0,95018.0,0.5216945]
[1746084496071,4e-05,95019.0,95018.0,0.5531945]
[1746084496472,0.0319,95031.0,95030.0,0.2104282]
[1746084496659,0.0319,95031.0,95030.0,0.4904282]
[1746084496860,1.39896016,95031.0,95030.0,0.5536682]
[1746084497065,1.39900016,95031.0,95030.0,0.5536682]
[1746084498366,1.39900016,95031.0,95030.0,0.5546682]
[1746084498559,0.242366,95031.0,95030.0,0.5556682]
[1746084502460,0.242366,95031.0,95030.0,0.34524]
[1746084502765,0.242366,95031.0,95030.0,0.5556682]
[1746084503472,0.242366,95031.0,95030.0,0.71590193]
[1746084508466,0.242366,95031.0,95030.0,0.5556682]
[1746084510371,1.39900016,95031.0,95030.0,0.5556682]
[1746084525771,4e-05,95031.0,95030.0,0.5556682]
[1746084526081,4e-05,95031.0,95030.0,0.9164682]
[1746084526586,0.0327,95032.0,95031.0,0.210426]
[1746084526778,0.2431238,95032.0,95031.0,0.460426]
[1746084526975,0.2431238,95032.0,95031.0,0.524726]
[1746084527389,0.0327,95032.0,95031.0,0.524726]
[1746084527781,0.2431238,95032.0,95031.0,0.525726]
[1746084528087,0.2431238,95032.0,95031.0,0.526726]
[1746084528499,0.2431638,95032.0,95031.0,0.526726]
[1746084534793,0.2431638,95032.0,95031.0,0.74065222]
[1746084539487,0.2431638,95032.0,95031.0,0.526726]
[1746084544916,0.03274,95032.0,95031.0,0.526726]